[Event "44th Chess Olympiad Open 2022"]
[Site "Chennai"]
[Date "2022.08.02"]
[Round "5.25"]
[White "Kantans, Toms"]
[Black "Jumabayev, Rinat"]
[Result "0-1"]
[WhiteElo "2486"]
[BlackElo "2617"]
[Annotator "TA"]
[PlyCount "83"]
[EventDate "2022.??.??"]
[TimeControl "60"]

{[%evp 17,83,0,0,0,0,-8,0,0,0,-45,-15,-42,-45,-80,-79,-140,-133,-184,-184,-179,
-48,-25,-38,-25,-24,-74,0,0,-7,-131,-121,-134,-128,-123,-139,-136,-112,-105,
-133,-135,-131,-128,-73,-60,-68,-115,-35,-136,-78,-84,-79,-94,-97,-189,-205,
-283,-276,-484,-466,-537,-551,-541,-538,-551,-540,-542,-543,-511]} 1. e4 {
[%emt 0:00:04]} e6 {[%emt 0:00:03]} 2. d4 {[%emt 0:00:35]} d5 {[%emt 0:00:07]}
3. Nd2 {[%emt 0:00:07]} c5 {[%emt 0:00:12]} 4. Ngf3 {[%emt 0:00:37]} cxd4 {
[%emt 0:00:06]} 5. Nxd4 {[%emt 0:00:06]} Nc6 {[%emt 0:04:23]} 6. Bb5 {[%emt 0:
00:00]} Bd7 {[%emt 0:00:08]} 7. Nxc6 {[%emt 0:01:45]} bxc6 {[%emt 0:00:05]} 8.
Bd3 {[%emt 0:00:05]} Bd6 {[%emt 0:00:09]} 9. O-O {[%emt 0:04:03]} Qc7 {[%emt 0:
00:00]} 10. h3 {[%emt 0:08:36] C07: French Tarrasch: 3...c5, 4 Ngf3 and 4 exd5
Qxd5.} Nf6 {[%emt 0:07:34]} 11. Qe2 {[%emt 0:03:00]} O-O {[%emt 0:02:30]} 12.
c4 {[%emt 0:00:58] The position is equal.} Rfe8 {[%emt 0:03:27] [#]} 13. c5
$146 {[%emt 0:10:33]} (13. Re1 $5 {[%cal Re4e5]} dxe4 14. Nxe4 Nxe4 15. Bxe4
$11 (15. Qxe4 f5 $11)) ({Predecessor:} 13. b3 e5 14. cxd5 cxd5 15. exd5 e4 16.
Bc4 e3 17. Nf3 exf2+ 18. Qxf2 Ne4 19. Qb2 Bc5+ 20. Nd4 Ng3 21. Bd2 Ne2+ 22.
Bxe2 Rxe2 23. Rf2 Qe5 {0-1 (23) Afanasiev,N (2508)-Vaibhav,S (2590) Chess.com
INT 2019}) 13... Bh2+ {[%emt 0:00:21]} (13... Bxc5 14. e5 $16) 14. Kh1 {
[%emt 0:00:05]} Bf4 {[%emt 0:00:06]} 15. b4 {[%emt 0:19:22]} a5 {[%emt 0:19:27]
Black is more active.} 16. Bb2 {[%emt 0:06:55]} (16. bxa5 $142 Rxa5 17. Bb2)
16... e5 $1 $17 {[%emt 0:05:34]} (16... axb4 17. e5 $11) 17. b5 {[%emt 0:11:11]
} (17. a3 $17) 17... cxb5 $19 {[%emt 0:01:05]} 18. exd5 {[%emt 0:00:16]} Nxd5 {
[%emt 0:00:25]} (18... Qxc5 $19 {And now ...e4 would win.} 19. Rad1 Qb4) 19.
Ne4 $1 $15 {[%emt 0:11:43]} Rab8 {[%emt 0:16:32]} 20. Rad1 {[%emt 0:00:00]} Re6
{[%emt 0:07:15][%cal Ye8e6,Ye6h6,Yh6h2]} 21. Bc2 {[%emt 0:00:00]} (21. g3 $11 {
remains equal.}) 21... Nb4 {[%emt 0:05:18]} (21... Bc6 $17) 22. Bb3 $11 {
[%emt 0:11:35]} Rh6 {[%emt 0:12:22][%cal Yd7h3] White must now prevent ...
Bxh3!} 23. Nd6 {[%emt 0:00:00] [#]} (23. Rd6 $11) 23... Bxh3 $1 $17 {[%emt 0:
00:00]} 24. Nxf7 {[%emt 0:00:00] [#]} (24. gxh3 $2 Qd7 25. Qf3 (25. Bxf7+ $2
Kf8 $19) 25... Rxh3+ 26. Kg2 Rxf3 $19) (24. Bxf7+ Kf8) 24... Bxg2+ $1 {[%emt 0:
02:20]} 25. Kxg2 {[%emt 0:00:49]} Qc6+ {[%emt 0:00:00]} 26. Qf3 {[%emt 0:00:21]
} Rh2+ {[%emt 0:01:53] Deflection} 27. Kg1 {[%emt 0:00:04]} Qxf3 $40 {[%emt 0:
00:04][%csl Gf3][%cal Rh2h1] Black goes for the king. Really sharp!} 28. Nxe5+
{[%emt 0:00:11] [#]} Qxb3 $3 {[%emt 0:00:31]} 29. axb3 {[%emt 0:00:02]} Rc8 {
[%emt 0:01:42] Against c6} (29... Rh3 $142 30. Rd7 Rxb3) 30. Rd7 {[%emt 0:01:
22]} Rh5 {[%emt 0:00:27]} 31. Nf3 {[%emt 0:03:05] Inhibits Rg5+.} (31. Re1 $15)
31... Bh6 {[%emt 0:00:04]} (31... Rhxc5 $6 32. Rxg7+ Kf8 33. Rxh7 $11) (31...
Rcxc5 $6 32. Re1 Rc8 33. Rxg7+ Kf8 34. Ree7 $11) (31... Rc7 $17 32. Rxc7 Bxc7)
32. Ra1 {[%emt 0:04:42]} (32. Ne5 $15) 32... Rhxc5 {[%emt 0:00:48]} (32... Nc6
$142 $1 33. Kf1 Rxc5) 33. Rxa5 {[%emt 0:00:06] [#]} Nc6 $1 {[%emt 0:00:13]
Against Raa7} 34. Ra1 {[%emt 0:00:32]} Rf8 {[%emt 0:00:51]} 35. Rc7 {[%emt 0:
01:17] [#]} Rc2 $1 $19 {[%emt 0:00:47]} (35... Rxf3 36. Ra8+ Rf8 37. Rxf8+ Kxf8
38. Ba3 $17) 36. Ba3 {[%emt 0:00:43]} b4 {[%emt 0:00:17]} ({Weaker is} 36...
Rxf3 37. Rc8+ Kf7 38. Rf8+ Ke6 39. Rxf3 $17 (39. Re1+ $2 Re3 $19)) 37. Ne5 $2 {
[%emt 0:00:27]} (37. Rxc6 Rxc6 38. Bxb4) 37... Nd4 {[%emt 0:00:48] Black is
clearly winning.} ({Don't blunder} 37... Nxe5 $2 38. Rxc2 Nf3+ 39. Kh1 $19) ({
Avoid the trap} 37... bxa3 $2 38. Rxc6 Re2 39. Ng4 $19) 38. Bxb4 {[%emt 0:00:
29]} Rxc7 {[%emt 0:00:00]} 39. Bxf8 {[%emt 0:00:05]} Kxf8 {[%emt 0:00:05]} 40.
Ra8+ {[%emt 0:00:13]} Ke7 {[%emt 0:00:12]} 41. Rh8 {[%emt 0:30:06]} Kf6 {
[%emt 0:30:43]} 42. Ng4+ {[%emt 0:01:53] Weighted Error Value: White=0.39/
Black=0.13 (very precise)} 0-1

[Event "44th Chess Olympiad Open 2022"]
[Site "Chennai"]
[Date "2022.08.02"]
[Round "5.25"]
[White "Suleymenov, Alisher"]
[Black "Miezis Normunds"]
[Result "1-0"]
[WhiteElo "2467"]
[BlackElo "2446"]
[Annotator "RC"]
[PlyCount "69"]
[EventDate "2022.??.??"]
[TimeControl "60"]

1. e4 {[%emt 0:00:04]} c5 {[%emt 0:00:12]} 2. Nf3 {[%emt 0:00:05]} e6 {[%emt 0:
00:00]} 3. d4 {[%emt 0:00:06]} cxd4 {[%emt 0:00:08]} 4. Nxd4 {[%emt 0:00:05]}
a6 {[%emt 0:00:12]} 5. Bd3 {[%emt 0:00:06]} g6 {[%emt 0:05:41]} 6. O-O {
[%emt 0:00:48]} Bg7 {[%emt 0:01:46]} 7. Be3 {[%emt 0:00:23]} Ne7 {[%emt 0:00:
00]} 8. c4 {[%emt 0:00:24]} d5 {[%emt 0:04:31]} 9. exd5 {[%emt 0:00:28]} exd5 {
[%emt 0:00:49]} 10. Nc3 {[%emt 0:00:18]} O-O {[%emt 0:02:25]} 11. cxd5 {
[%emt 0:00:24]} Nxd5 {[%emt 0:00:37]} 12. Nxd5 {[%emt 0:00:11]} Qxd5 {[%emt 0:
00:00]} 13. Rc1 {[%emt 0:00:05]} Nd7 {[%emt 0:09:15]} 14. Bc4 {[%emt 0:09:29]}
Qe5 {[%emt 0:15:11]} 15. Re1 {[%emt 0:05:20]} Qf6 {[%emt 0:00:39]} 16. Nf3 {
[%emt 0:06:30]} Qf5 {[%emt 0:15:09]} 17. Bd4 {[%emt 0:05:57]} Bxd4 {[%emt 0:00:
00]} 18. Qxd4 {[%emt 0:00:19]} Rb8 {[%emt 0:19:20]} 19. Re7 {[%emt 0:08:11]}
Nf6 {[%emt 0:01:21]} 20. Qd6 {[%emt 0:15:45]} Be6 {[%emt 0:01:19]} 21. Rxe6 {
[%emt 0:03:30]} Rfd8 {[%emt 0:01:49]} 22. Qe5 {[%emt 0:01:25]} Rbc8 {[%emt 0:
00:00]} 23. Qxf5 {[%emt 0:00:43]} gxf5 {[%emt 0:00:07]} 24. Ree1 {[%emt 0:00:
00]} Ne4 {[%emt 0:00:11]} 25. Bb3 {[%emt 0:02:23]} Kg7 {[%emt 0:00:07]} 26.
Rxc8 {[%emt 0:03:03]} Rxc8 {[%emt 0:00:07]} 27. Nd4 {[%emt 0:00:04]} Kf6 {
[%emt 0:00:10]} 28. f3 {[%emt 0:00:09]} Nc5 {[%emt 0:00:22]} 29. Bc2 {[%emt 0:
00:00]} f4 {[%emt 0:00:19]} 30. Bxh7 {[%emt 0:03:22]} Rd8 {[%emt 0:00:27]} 31.
Nb3 {[%emt 0:00:11]} Ne6 {[%emt 0:00:27]} 32. Bc2 {[%emt 0:00:45]} a5 {[%emt 0:
00:00]} 33. a4 {[%emt 0:00:49]} b6 {[%emt 0:00:06]} 34. Rd1 {[%emt 0:01:27]}
Rc8 {[%emt 0:00:14]} 35. Bd3 {[%emt 0:00:04]} 1-0

[Event "44th Chess Olympiad Open 2022"]
[Site "Chennai"]
[Date "2022.08.02"]
[Round "5.25"]
[White "Nogerbek, Kazybek"]
[Black "Golubovskis, Maksims"]
[Result "1-0"]
[WhiteElo "2437"]
[BlackElo "2219"]
[Annotator "RC"]
[PlyCount "89"]
[EventDate "2022.??.??"]
[TimeControl "60"]

1. e4 {[%emt 0:00:09]} c5 {[%emt 0:00:08]} 2. Nc3 {[%emt 0:00:14]} d6 {[%emt 0:
00:00]} 3. f4 {[%emt 0:00:35]} g6 {[%emt 0:00:10]} 4. Nf3 {[%emt 0:00:07]} Bg7
{[%emt 0:00:04]} 5. Bb5+ {[%emt 0:00:10]} Bd7 {[%emt 0:00:08]} 6. Bc4 {[%emt 0:
00:00]} Nc6 {[%emt 0:02:23]} 7. O-O {[%emt 0:00:39]} e6 {[%emt 0:05:45]} 8. d3
{[%emt 0:05:11]} Nge7 {[%emt 0:06:46]} 9. Qe1 {[%emt 0:04:57]} Nd4 {[%emt 0:00:
00]} 10. Nxd4 {[%emt 0:01:16]} cxd4 {[%emt 0:00:06]} 11. Ne2 {[%emt 0:01:00]}
O-O {[%emt 0:08:20]} 12. Bb3 {[%emt 0:01:37]} Kh8 {[%emt 0:02:37]} 13. Bd2 {
[%emt 0:09:48]} Qb6 {[%emt 0:08:46]} 14. Ba5 {[%emt 0:02:38]} Qc6 {[%emt 0:00:
00]} 15. Qh4 {[%emt 0:02:46]} Ng8 {[%emt 0:04:24]} 16. e5 {[%emt 0:08:50]} Qb5
{[%emt 0:20:02]} 17. Bc7 {[%emt 0:02:50]} dxe5 {[%emt 0:00:47]} 18. Bd6 {
[%emt 0:08:54]} exf4 {[%emt 0:11:54]} 19. Bxf8 {[%emt 0:02:06]} Rxf8 {[%emt 0:
00:00]} 20. Qxf4 {[%emt 0:00:25]} e5 {[%emt 0:01:08]} 21. Qh4 {[%emt 0:01:17]}
f5 {[%emt 0:00:21]} 22. a4 {[%emt 0:16:00]} Qc5 {[%emt 0:01:08]} 23. Kh1 {
[%emt 0:00:41]} Nf6 {[%emt 0:01:07]} 24. c3 {[%emt 0:04:33]} Qb6 {[%emt 0:00:
00]} 25. Bc4 {[%emt 0:00:43]} dxc3 {[%emt 0:04:49]} 26. Nxc3 {[%emt 0:00:44]}
Qxb2 {[%emt 0:01:38]} 27. Nd5 {[%emt 0:02:52]} Qd2 {[%emt 0:03:49]} 28. a5 {
[%emt 0:03:05]} Nxd5 {[%emt 0:03:38]} 29. Bxd5 {[%emt 0:00:01]} Qxd3 {[%emt 0:
00:00]} 30. Bxb7 {[%emt 0:01:58]} e4 {[%emt 0:00:44]} 31. Rad1 {[%emt 0:00:46]}
Qb5 {[%emt 0:02:31]} 32. Qe7 {[%emt 0:01:44]} Be6 {[%emt 0:00:37]} 33. Qxe6 {
[%emt 0:06:25]} Qxb7 {[%emt 0:00:05]} 34. a6 {[%emt 0:00:24]} Qb5 {[%emt 0:00:
00]} 35. Rb1 {[%emt 0:01:28]} Qd3 {[%emt 0:00:03]} 36. Rfd1 {[%emt 0:00:26]}
Qe2 {[%emt 0:00:05]} 37. Rdc1 {[%emt 0:02:03]} Qe3 {[%emt 0:02:11]} 38. Qe7 {
[%emt 0:02:12]} f4 {[%emt 0:02:36]} 39. Re1 {[%emt 0:02:44]} Qd3 {[%emt 0:00:
00]} 40. Rb7 {[%emt 0:00:52]} Rg8 {[%emt 0:00:35]} 41. Qxe4 {[%emt 0:30:20]}
Qxa6 {[%emt 0:30:27]} 42. Rf7 {[%emt 0:00:33]} Qb6 {[%emt 0:00:00]} 43. Qxf4 {
[%emt 0:00:00]} h5 {[%emt 0:00:00]} 44. h3 {[%emt 0:00:00]} a5 {[%emt 0:00:00]}
45. Ree7 {[%emt 0:00:00]} 1-0

[Event "44th Chess Olympiad Open 2022"]
[Site "Chennai"]
[Date "2022.08.02"]
[Round "5.25"]
[White "Reimanis, Ritvars"]
[Black "Urazayev, Arystanbek"]
[Result "0-1"]
[WhiteElo "2377"]
[BlackElo "2430"]
[Annotator "RC"]
[PlyCount "90"]
[EventDate "2022.??.??"]
[TimeControl "60"]

1. d4 {[%emt 0:00:05]} Nf6 {[%emt 0:01:00]} 2. Nf3 {[%emt 0:00:06]} e6 {
[%emt 0:00:43]} 3. c4 {[%emt 0:01:59]} d5 {[%emt 0:00:25]} 4. Nc3 {[%emt 0:00:
00]} dxc4 {[%emt 0:02:03]} 5. e3 {[%emt 0:03:30]} a6 {[%emt 0:00:39]} 6. Bxc4 {
[%emt 0:00:15]} b5 {[%emt 0:00:06]} 7. Be2 {[%emt 0:00:05]} Bb7 {[%emt 0:00:29]
} 8. O-O {[%emt 0:00:05]} Nbd7 {[%emt 0:00:17]} 9. Nd2 {[%emt 0:01:03]} c5 {
[%emt 0:00:35]} 10. dxc5 {[%emt 0:01:25]} Bxc5 {[%emt 0:01:40]} 11. Nb3 {
[%emt 0:00:30]} Be7 {[%emt 0:02:05]} 12. Bf3 {[%emt 0:00:16]} Bxf3 {[%emt 0:00:
00]} 13. Qxf3 {[%emt 0:00:06]} O-O {[%emt 0:00:40]} 14. a3 {[%emt 0:14:04]} Rc8
{[%emt 0:05:24]} 15. e4 {[%emt 0:03:40]} Ne5 {[%emt 0:10:34]} 16. Qg3 {[%emt 0:
00:00]} Nc4 {[%emt 0:01:28]} 17. e5 {[%emt 0:05:52]} Nh5 {[%emt 0:04:22]} 18.
Qf3 {[%emt 0:00:27]} g6 {[%emt 0:00:08]} 19. Qb7 {[%emt 0:01:22]} Qc7 {[%emt 0:
00:00]} 20. Qxc7 {[%emt 0:04:39]} Rxc7 {[%emt 0:00:35]} 21. g4 {[%emt 0:03:24]}
Ng7 {[%emt 0:00:22]} 22. Kg2 {[%emt 0:14:39]} Rd8 {[%emt 0:06:26]} 23. f4 {
[%emt 0:09:22]} h5 {[%emt 0:01:28]} 24. h3 {[%emt 0:00:05]} Rcd7 {[%emt 0:00:
00]} 25. Ne4 {[%emt 0:08:31]} Rd5 {[%emt 0:02:56]} 26. Rb1 {[%emt 0:04:38]} a5
{[%emt 0:05:35]} 27. Na1 {[%emt 0:03:57]} Rd4 {[%emt 0:23:11]} 28. Re1 {
[%emt 0:02:34]} Bh4 {[%emt 0:02:29]} 29. Re2 {[%emt 0:00:09]} Rd1 {[%emt 0:00:
00]} 30. Nc2 {[%emt 0:02:17]} Rc8 {[%emt 0:08:04]} 31. b3 {[%emt 0:03:49]} Nb6
{[%emt 0:00:14]} 32. Nd6 {[%emt 0:01:25]} Rc3 {[%emt 0:00:33]} 33. Nxb5 {
[%emt 0:02:39]} Rg3+ {[%emt 0:00:09]} 34. Kh2 {[%emt 0:00:13]} Rgg1 {[%emt 0:
00:00]} 35. Re3 {[%emt 0:00:16]} Nd5 {[%emt 0:02:33]} 36. Rd3 {[%emt 0:01:41]}
Rh1+ {[%emt 0:01:03]} 37. Kg2 {[%emt 0:00:00]} Rxc1 {[%emt 0:00:13]} 38. Rxc1 {
[%emt 0:01:46]} Rxc1 {[%emt 0:00:05]} 39. Rd2 {[%emt 0:00:44]} Rxc2 {[%emt 0:
00:00]} 40. Rxc2 {[%emt 0:00:01]} Ne3+ {[%emt 0:00:04]} 41. Kf3 {[%emt 0:30:01]
} Nxc2 {[%emt 0:30:07]} 42. Ke4 {[%emt 0:00:12]} Be7 {[%emt 0:00:35]} 43. b4 {
[%emt 0:00:21]} axb4 {[%emt 0:01:14]} 44. a4 {[%emt 0:00:00]} b3 {[%emt 0:00:
00]} 45. Kd3 {[%emt 0:00:00]} Na3 {[%emt 0:00:00]} 0-1

[Event "44th Chess Olympiad Open 2022"]
[Site "Chennai"]
[Date "2022.08.02"]
[Round "5.26"]
[White "Tari, Aryan"]
[Black "Phiri, Richmond"]
[Result "1-0"]
[WhiteElo "2672"]
[BlackElo "2293"]
[Annotator "TA"]
[PlyCount "83"]
[EventDate "2022.??.??"]
[TimeControl "60"]

{[%evp 16,83,28,24,30,18,45,46,44,29,37,41,45,29,25,25,25,20,20,10,12,20,20,14,
15,7,21,5,6,0,0,0,0,1,0,0,-15,-71,-72,-64,-64,-72,-72,-54,-54,-76,45,43,45,43,
39,32,38,29,38,17,9,0,286,310,541,539,506,0,450,410,1686,1525,29979,577]} 1. e4
{[%emt 0:00:25]} c5 {[%emt 0:00:09]} 2. Nf3 {[%emt 0:00:08]} e6 {[%emt 0:00:09]
} 3. d4 {[%emt 0:00:06]} cxd4 {[%emt 0:00:03]} 4. Nxd4 {[%emt 0:00:06]} a6 {
[%emt 0:00:08]} 5. h3 {[%emt 0:00:04]} Nf6 {[%emt 0:03:31]} 6. Bd3 {[%emt 0:00:
00]} Nc6 {[%emt 0:07:45]} 7. Nxc6 {[%emt 0:00:48] [#]} dxc6 $146 {[%emt 0:00:
00]} ({Predecessor:} 7... bxc6 8. O-O d5 9. Nd2 Be7 10. c4 O-O 11. e5 Nd7 12.
Nf3 a5 13. Qc2 h6 {½-½ (51) Warmerdam,M (2600)-Sprenger,J (2483) Germany 2022
}) 8. O-O {[%emt 0:00:21]} e5 {[%emt 0:00:20]} 9. Be3 {[%emt 0:01:54]} Be7 {
[%emt 0:01:05] B42: Sicilian: Kan Variation: 5 Bd3.} 10. Nd2 {[%emt 0:01:36]}
b5 {[%emt 0:03:48]} 11. a4 {[%emt 0:13:06] Threatens to win with axb5.} Be6 {
[%emt 0:12:05] White is slightly better.} 12. Nf3 {[%emt 0:08:31]} Nd7 {
[%emt 0:01:24]} 13. Qd2 {[%emt 0:00:19]} O-O {[%emt 0:06:18]} 14. Ng5 {[%emt 0:
00:00]} Nc5 {[%emt 0:01:13]} 15. Nxe6 {[%emt 0:06:23]} Nxe6 {[%emt 0:00:04]}
16. Qc3 {[%emt 0:00:50][%csl Yc6,Ye5]} Qc7 {[%emt 0:13:19]} 17. Ra2 {[%emt 0:
00:00]} b4 {[%emt 0:04:31]} 18. Qc4 {[%emt 0:09:03]} a5 {[%emt 0:08:08]} 19. c3
{[%emt 0:05:04]} Rab8 {[%emt 0:07:57]} 20. Be2 {[%emt 0:14:17]} Rfd8 {[%emt 0:
00:00]} 21. Bg4 {[%emt 0:00:58]} Nf4 {[%emt 0:05:26]} 22. Raa1 {[%emt 0:02:00]}
h5 {[%emt 0:07:46]} 23. Bf3 {[%emt 0:01:37]} g6 {[%emt 0:00:09]} 24. h4 {
[%emt 0:04:39]} Qc8 {[%emt 0:12:05]} (24... Bxh4 25. g3 $14) 25. Rfd1 {[%emt 0:
00:00]} Bxh4 {[%emt 0:02:04]} 26. cxb4 {[%emt 0:08:28]} (26. g3 $11 Qh3 27. Qf1
bxc3 28. bxc3) 26... Rxb4 $17 {[%emt 0:00:35]} 27. Qc3 {[%emt 0:00:01]} Qe6 {
[%emt 0:01:00]} 28. g3 {[%emt 0:01:05]} Nh3+ {[%emt 0:00:54]} 29. Kg2 {[%emt 0:
00:00]} Rxd1 {[%emt 0:00:12]} 30. Rxd1 {[%emt 0:01:00] [#]} Be7 {[%emt 0:00:04]
} (30... Ng5 $1 $17 {( -> ...Qh3+)} 31. Rd8+ Kg7 32. Bxg5 Bxg5) 31. Qd2 $36 {
[%emt 0:00:31] White has the initiative.} Qf6 {[%emt 0:01:29]} ({Don't play} 
31... Rxa4 32. Rh1 $16) 32. Qd7 {[%emt 0:01:17]} Ng5 {[%emt 0:00:00]} 33. Qe8+
{[%emt 0:00:01]} Bf8 $1 {[%emt 0:01:59]} 34. Bxg5 {[%emt 0:01:13] Active
counter play!} Qxg5 {[%emt 0:00:00]} 35. Rd8 {[%emt 0:00:17]} (35. Rd7 $5 {
[%cal Re8f7]} Qf6 36. Rd8 $14) 35... Qh6 {[%emt 0:00:00]} 36. Qxe5 {[%emt 0:00:
24]} Qg7 $2 {[%emt 0:00:00] [#]} (36... h4 $11 {and Black has nothing to worry.
}) 37. Qxa5 $18 {[%emt 0:00:36]} Rxb2 {[%emt 0:00:00]} (37... Kh7 {was worth a
try.} 38. e5 h4 39. gxh4 (39. Bxc6 hxg3 40. Qa7 Rxb2 $11) 39... Rxb2) 38. Qc5 {
[%emt 0:01:02]} Ra2 {[%emt 0:01:32]} 39. Qc4 $2 {[%emt 0:00:50]} (39. a5 $18)
39... Ra3 $2 {[%emt 0:00:10]} (39... Qb2 $1 $11 40. Qc5 Qg7) 40. e5 {[%emt 0:
01:20]} Qxe5 {[%emt 0:00:48]} (40... Ra1 $142 41. Qd4 Re1) 41. Qb4 $1 {[%emt 0:
30:31]} Rxf3 {[%emt 0:30:34]} 42. Qxf8+ {[%emt 0:00:15] Weighted Error Value:
White=0.15 (very precise) /Black=0.78} 1-0

[Event "44th Chess Olympiad Open 2022"]
[Site "Chennai"]
[Date "2022.08.02"]
[Round "5.26"]
[White "Christiansen, Johan-Sebastian"]
[Black "Kabwe Timothy"]
[Result "1-0"]
[WhiteElo "2593"]
[BlackElo "2248"]
[Annotator "TA"]
[PlyCount "101"]
[EventDate "2022.??.??"]
[TimeControl "60"]

{[%evp 14,101,44,54,85,62,59,77,68,70,83,72,72,64,89,102,82,81,104,76,80,79,99,
78,114,67,108,101,111,96,88,73,83,72,85,78,116,61,67,0,64,46,154,151,139,158,
155,148,142,133,184,181,202,158,384,384,381,357,330,312,814,138,146,150,143,
127,153,149,149,151,145,158,165,166,161,156,408,422,485,416,557,556,525,364,
751,723,656,515,4731,4722]} 1. e4 {[%emt 0:00:09]} c6 {[%emt 0:00:50]} 2. d4 {
[%emt 0:00:52]} d5 {[%emt 0:00:30]} 3. Nd2 {[%emt 0:00:41]} dxe4 {[%emt 0:00:
00]} 4. Nxe4 {[%emt 0:00:05]} Nf6 {[%emt 0:00:36]} 5. Nxf6+ {[%emt 0:00:20]}
gxf6 {[%emt 0:00:33]} 6. Nf3 {[%emt 0:03:07]} Bg4 {[%emt 0:02:41]} 7. Be2 {
[%emt 0:01:04]} e6 {[%emt 0:00:34]} 8. O-O {[%emt 0:01:45]} Bg7 {[%emt 0:00:42]
B16: Caro-Kann: Bronstein-Larsen Variation.} 9. Bf4 {[%emt 0:04:40]} O-O {
[%emt 0:01:23] [#]} 10. h3 $146 {[%emt 0:03:47]} ({Predecessor:} 10. Qd2 Kh8
11. Rad1 Nd7 12. c4 Rg8 13. Nh4 Bxe2 14. Qxe2 f5 15. Nf3 Qf6 16. Qe3 {0-1 (29)
Garcia,S-Jimenez Zerquera,E Cuba 1965}) 10... Bxf3 {[%emt 0:08:25] White is
better.} 11. Bxf3 {[%emt 0:01:22]} f5 {[%emt 0:00:10]} 12. c3 {[%emt 0:00:34]}
Nd7 {[%emt 0:00:14]} 13. a4 {[%emt 0:03:40]} a5 {[%emt 0:00:34]} 14. Qb3 {
[%emt 0:01:22]} Qb6 {[%emt 0:00:38]} 15. Ra3 {[%emt 0:01:30]} Qa7 {[%emt 0:00:
00]} 16. Rd1 {[%emt 0:04:48]} Rfe8 {[%emt 0:01:06]} 17. Qc2 {[%emt 0:02:34]}
Rad8 {[%emt 0:05:51]} 18. Rb3 {[%emt 0:03:08]} Nf6 {[%emt 0:00:33]} 19. Bc7 {
[%emt 0:10:09]} (19. Qc1 $16) 19... Rc8 {[%emt 0:00:14]} 20. Be5 {[%emt 0:00:
00]} Nd7 {[%emt 0:14:57][%cal Yf6d7,Yd7f8,Yf8g6]} 21. Bf4 {[%emt 0:00:00]
White is more active.} Nf8 {[%emt 0:02:53]} 22. Bd6 {[%emt 0:02:04]} Ng6 {
[%emt 0:08:40]} 23. Bc5 {[%emt 0:00:45] A strong pair of Bishops.} Qa8 {
[%emt 0:00:48]} 24. c4 {[%emt 0:02:08]} Bf8 {[%emt 0:02:12]} 25. Bb6 {[%emt 0:
00:00]} (25. Bxf8 $16 Rxf8 26. g3) 25... Bb4 $14 {[%emt 0:01:17]} 26. c5 {
[%emt 0:01:02]} (26. Qc1 $14) 26... h6 {[%emt 0:04:50]} (26... Kg7 $11) 27. Bh5
$36 {[%emt 0:01:46] White has good play.} (27. g4 $5 {[%cal Rg4f5]}) 27... Kh7
{[%emt 0:00:25]} ({Better is} 27... Nf4 $1 $14 28. Rg3+ Kf8) 28. Bxg6+ $16 {
[%emt 0:04:38]} fxg6 {[%emt 0:03:23] [#]} 29. Re3 $1 {[%emt 0:00:18]} Re7 {
[%emt 0:00:15] [#]} 30. d5 $1 {[%emt 0:08:13]} cxd5 {[%emt 0:00:43]} 31. Rxd5 {
[%emt 0:00:02]} Rce8 {[%emt 0:00:20]} (31... Rg8 $16 32. Qb3 Qe8) 32. Rd6 $18 {
[%emt 0:00:05]} Qc8 {[%emt 0:00:29]} 33. Qc4 {[%emt 0:00:57]} e5 $2 {[%emt 0:
04:18] [#]} (33... Rg7 $16 34. Re5 (34. Rdxe6 Rxe6 35. Rxe6 Rd7 $16) 34... Ree7
) 34. Rxe5 $3 {[%emt 0:00:18]} Rg7 {[%emt 0:01:41]} (34... Rxe5 {gets mated.}
35. Qf7+ Kh8 36. Qf6+ Kh7 37. Qxg6+ Kh8 38. Qxh6+ Kg8 39. Rg6+ Kf7 40. Qg7#)
35. Qe2 {[%emt 0:01:48]} Rxe5 {[%emt 0:04:06]} 36. Qxe5 {[%emt 0:00:03]} Qf8 {
[%emt 0:04:01]} (36... Qb8 37. Bd8 Qc8) 37. Re6 $2 {[%emt 0:05:42]} (37. Bd8
$18 {and the rest is easy.}) 37... Rd7 $16 {[%emt 0:00:00]} 38. h4 {[%emt 0:02:
34][%cal Yh4h5] aiming for h5!} Qg7 {[%emt 0:00:22]} 39. h5 {[%emt 0:00:44]}
Qxe5 {[%emt 0:01:48][%cal Rd7d1]} 40. hxg6+ {[%emt 0:00:00]} ({Don't play} 40.
Rxe5 gxh5 41. Rxf5 Kg6 $16) 40... Kg7 {[%emt 0:00:14][%cal Rd7d1]} 41. Rxe5 {
[%emt 0:30:04]} Kxg6 {[%emt 0:30:09] Endgame KRB-KRB} 42. Re6+ {[%emt 0:00:21]}
Kh5 {[%emt 0:07:07]} 43. c6 {[%emt 0:00:00]} bxc6 {[%emt 0:00:00]} 44. Rxc6 {
[%emt 0:00:00]} f4 $2 {[%emt 0:00:00] [#] Prevents Be3.} (44... Kg4 $16 45.
Rxh6 Rd1+ 46. Kh2 Bd6+ 47. g3 f4) 45. Bxa5 $1 $18 {[%emt 0:00:00]} Bxa5 {
[%emt 0:00:00] KRB-KR} (45... Be7 46. Bb6) 46. Rc5+ {[%emt 0:00:00]} Kh4 {
[%emt 0:00:00]} 47. Rxa5 {[%emt 0:00:00]} Rd1+ {[%emt 0:00:00]} 48. Kh2 {
[%emt 0:00:00] Threatens to win with b4.} Rd2 $2 {[%emt 0:00:00]} (48... Rb1
49. Rb5 Ra1) 49. Rb5 {[%emt 0:00:00] And now a5 would win. White is clearly
winning.} Rxf2 {[%emt 0:00:00]} 50. a5 {[%emt 0:00:00]} Rf1 {[%emt 0:00:00]} (
50... f3 $142 51. Rb4+ Kg5) 51. Rb3 {[%emt 0:00:00] Weighted Error Value:
White=0.25 (precise) /Black=0.35} 1-0